fUSD/lending_fUSD_20241001
["ID","MTS","AMOUNT","RATE_DAILY","PERIOD"]
[339664919,1727820724186,-500.0,0.0003863,120]
[339664920,1727820724195,-907.03,0.0003863,120]
[339664921,1727820724204,-1358.61,0.0003863,120]
[339664922,1727820724214,-500.0,0.0003863,120]
[339664923,1727820724223,-1099.94,0.0003863,120]
[339664924,1727820724232,-528.25,0.0003863,120]
[339664925,1727820724242,-4156.88,0.0003863,120]
[339664926,1727820724251,-500.0,0.0003863,120]
[339664927,1727820724262,-660.82,0.0003863,120]
[339664928,1727820724272,-3441.48,0.0003863,7]
[339664929,1727820724282,-2560.29,0.0003863,120]
[339664930,1727820724292,-580.8,0.0003863,120]
[339664931,1727820724301,-500.0,0.0003863,120]
[339664932,1727820724311,-985.41,0.0003863,120]
[339664933,1727820724321,-1225.48,0.0003863,120]
[339664934,1727820724330,-1575.11,0.0003863,120]
[339664935,1727820724340,-500.0,0.0003863,120]
[339664936,1727820724349,-967.16,0.0003863,120]
[339664937,1727820724359,-500.91540584,0.0003863,120]
[339664938,1727820724368,-1027.36,0.0003863,120]
[339664939,1727820724377,-2849.3,0.0003863,120]
[339664940,1727820724387,-1745.08,0.0003863,120]
[339664941,1727820724396,-705.04,0.0003863,120]
[339664942,1727820724405,-500.0,0.0003863,120]
[339664943,1727820724414,-500.0,0.0003863,120]
[339664944,1727820724424,-500.0,0.0003863,120]
[339664945,1727820724434,-529.51,0.0003863,120]
[339664946,1727820724443,-1708.87,0.0003863,120]
[339664947,1727820724453,-500.0,0.0003863,120]
[339664948,1727820724462,-3262.83,0.0003863,120]
[339664949,1727820724471,-500.0,0.0003863,90]
[339664950,1727820724481,-853.84,0.0003863,120]
[339664951,1727820724490,-3136.81,0.0003863,120]
[339664952,1727820724500,-5703.42,0.0003863,120]
[339664953,1727820724511,-500.0,0.0003863,120]
[339664954,1727820724521,-500.0,0.0003863,120]
[339664955,1727820724530,-4081.48,0.0003863,120]
[339664956,1727820724540,-500.0,0.0003863,120]
[339664957,1727820724550,-500.0,0.0003863,120]
[339664958,1727820724559,-2086.44,0.0003863,120]
[339664959,1727820724569,-3712.01,0.0003863,120]
[339664960,1727820724579,-871.7,0.0003863,120]
[339664961,1727820724589,-500.0,0.0003863,120]
[339664962,1727820724598,-500.0,0.0003863,120]
[339664963,1727820724607,-634.09,0.0003863,120]
[339664964,1727820724617,-500.0,0.0003863,120]
[339664965,1727820724626,-1402.75,0.0003863,120]
[339664966,1727820724638,-2173.94,0.0003863,120]
[339664967,1727820724648,-500.0,0.0003863,120]
[339664968,1727820724657,-975.58,0.0003863,120]
[339664969,1727820724666,-500.0,0.0003863,120]
[339664970,1727820724676,-500.0,0.0003863,120]
[339664971,1727820724685,-880.81,0.0003863,120]
[339664972,1727820724695,-902.4,0.0003863,120]
[339664973,1727820724705,-2426.66,0.0003863,120]
[339664974,1727820724714,-500.0,0.0003863,120]
[339664975,1727820724723,-666.13,0.0003863,120]
[339664976,1727820724732,-500.0,0.0003863,120]
[339664977,1727820724742,-500.0,0.0003863,120]
[339664978,1727820724751,-500.0,0.0003863,120]
[339664979,1727820724762,-1238.19,0.0003863,120]
[339664980,1727820724771,-500.0,0.0003863,120]
[339664981,1727820724781,-907.98,0.0003863,120]
[339664982,1727820724791,-2210.55,0.0003863,120]
[339664983,1727820724800,-500.0,0.0003863,120]
[339664984,1727820724810,-1798.18,0.0003863,120]
[339664985,1727820724820,-500.0,0.0003863,120]
[339664986,1727820724829,-2470.03,0.0003863,120]
[339664987,1727820724838,-500.0,0.0003863,120]
[339664988,1727820724847,-996.57,0.0003863,120]
[339664989,1727820724856,-500.0,0.0003863,120]
[339664990,1727820724865,-500.0,0.0003863,120]
[339664991,1727820724874,-2061.0,0.0003863,120]
[339664992,1727820724883,-500.0,0.0003863,120]
[339664993,1727820724892,-500.0,0.0003863,120]
[339664994,1727820724902,-500.0,0.0003863,120]
[339664995,1727820724911,-602.42,0.0003863,120]
[339664996,1727820724920,-500.0,0.0003863,120]
[339664997,1727820724930,-1172.0,0.0003863,120]
[339664998,1727820724939,-1419.38,0.0003863,120]
[339664999,1727820724949,-3467.23,0.0003863,120]
[339665000,1727820724959,-1691.93,0.0003863,120]
[339665001,1727820724968,-500.0,0.0003863,120]
[339665002,1727820724978,-500.0,0.0003863,120]
[339665003,1727820724988,-4101.04,0.0003863,120]
[339665004,1727820724997,-500.0,0.0003863,120]
[339665005,1727820725010,-677.33,0.0003863,120]
[339665006,1727820725019,-500.0,0.0003863,120]
[339665007,1727820725028,-500.0,0.0003863,120]
[339665008,1727820725037,-833.05,0.0003863,120]
[339665009,1727820725047,-500.0,0.0003863,120]
[339665010,1727820725056,-1660.84,0.0003863,120]
[339665011,1727820725066,-500.0,0.0003863,120]
[339665012,1727820725075,-500.0,0.0003863,120]
[339665013,1727820725084,-3464.91,0.0003863,2]
[339665014,1727820725094,-500.0,0.0003863,120]
[339665015,1727820725103,-1956.73,0.0003863,120]
[339665016,1727820725112,-1946.23,0.0003863,120]
[339665017,1727820725238,-617.9,0.0003863,120]
[339665018,1727820725248,-1639.32,0.0003863,120]
[339665019,1727820725265,-500.0,0.0003863,120]
[339665020,1727820725274,-2100.71,0.0003863,120]
[339665021,1727820725283,-500.0,0.0003863,120]
[339665022,1727820725293,-2862.61,0.0003863,120]
[339665023,1727820725303,-500.0,0.0003863,120]
[339665024,1727820725312,-500.0,0.0003863,120]
[339665025,1727820725323,-500.0,0.0003863,7]
[339665026,1727820725332,-500.0,0.0003863,120]
[339665027,1727820725341,-500.0,0.0003863,120]
[339665028,1727820725350,-500.0,0.0003863,120]
[339665029,1727820725360,-2844.86,0.0003863,120]
[339665030,1727820725371,-562.19,0.0003863,120]
[339665031,1727820725380,-1702.59,0.0003863,120]
[339665032,1727820725389,-1513.2,0.0003863,120]
[339665033,1727820725399,-1836.7,0.0003863,120]
[339665034,1727820725409,-500.0,0.0003863,120]
[339665035,1727820725421,-500.0,0.0003863,120]
[339665036,1727820725432,-500.0,0.0003863,120]
[339665037,1727820725441,-4515.07,0.0003863,120]
[339665038,1727820725452,-527.16,0.0003863,120]
[339665039,1727820725461,-2408.38,0.0003863,120]
[339665040,1727820725470,-713.01,0.0003863,120]
[339665041,1727820725479,-1779.61,0.0003863,120]
[339665042,1727820725489,-1463.81,0.0003863,120]
[339665043,1727820725499,-754.74,0.0003863,120]
[339665044,1727820725510,-1385.69,0.0003863,120]
[339665045,1727820725520,-909.5,0.0003863,120]
[339665046,1727820725529,-500.0,0.0003863,120]
[339665047,1727820725539,-501.50287217,0.0003863,120]
[339665048,1727820725549,-500.0,0.0003863,120]
[339665049,1727820725559,-500.0,0.0003863,120]
[339665050,1727820725568,-727.88,0.0003863,120]
[339665051,1727820725577,-500.0,0.0003863,120]
[339665052,1727820725586,-555.20474648,0.0003863,120]
[339665053,1727820725596,-500.0,0.0003863,120]
[339665054,1727820725605,-565.09,0.0003863,120]
[339665055,1727820725615,-1971.06,0.0003863,120]
[339665056,1727820725624,-500.0,0.0003863,120]
[339665057,1727820725636,-1489.52,0.0003863,120]
[339665058,1727820725647,-532.71,0.0003863,120]
[339665059,1727820725656,-500.0,0.0003863,120]
[339665060,1727820725665,-631.55,0.0003863,120]
[339665061,1727820725675,-2949.18,0.0003863,120]
[339665062,1727820725685,-1129.67,0.0003863,120]
[339665063,1727820725694,-500.0,0.0003863,7]
[339665064,1727820725704,-632.15,0.0003863,120]
[339665065,1727820725714,-3225.97,0.0003863,120]
[339665066,1727820725724,-692.07,0.0003863,120]
[339665067,1727820725733,-534.81,0.0003863,120]
[339665068,1727820725743,-1721.35,0.0003863,120]
[339665069,1727820725752,-505.35654003,0.0003863,120]
[339665070,1727820725763,-500.0,0.0003863,120]
[339665071,1727820725772,-500.0,0.0003863,120]
[339665072,1727820725782,-500.0,0.0003863,120]
[339665073,1727820725791,-546.17,0.0003863,120]
[339665074,1727820725802,-500.0,0.0003863,120]
[339665075,1727820725811,-500.0,0.0003863,120]
[339665076,1727820725820,-500.0,0.0003863,120]
[339665077,1727820725830,-650.82,0.0003863,120]
[339665078,1727820725839,-500.0,0.0003863,120]
[339665079,1727820725848,-500.0,0.0003863,120]
[339665080,1727820725857,-500.0,0.0003863,120]
[339665081,1727820725867,-1437.52,0.0003863,120]
[339665082,1727820725876,-518.0,0.0003863,120]
[339665083,1727820725885,-2907.14,0.0003863,120]
[339665084,1727820725895,-2926.57,0.0003863,120]
[339665085,1727820725904,-1025.17,0.0003863,120]
[339665086,1727820725914,-500.0,0.0003863,120]
[339665087,1727820725923,-500.0,0.0003863,120]
[339665088,1727820725932,-500.0,0.0003863,120]
[339665089,1727820725941,-1407.77,0.0003863,120]
[339665090,1727820725950,-860.32,0.0003863,120]
[339665091,1727820725959,-730.5,0.0003863,120]
[339665092,1727820725969,-1168.59,0.0003863,120]
[339665093,1727820725978,-500.0,0.0003863,120]
[339665094,1727820725987,-1143.54,0.0003863,120]
[339665095,1727820725997,-500.0,0.0003863,120]
[339665096,1727820726008,-500.0,0.0003863,120]
[339665097,1727820726017,-500.0,0.0003863,120]
[339665098,1727820726027,-500.0,0.0003863,120]
[339665099,1727820726036,-773.63,0.0003863,120]
[339665100,1727820726046,-500.0,0.0003863,120]
[339665101,1727820726055,-500.0,0.0003863,120]
[339665102,1727820726065,-660.94,0.0003863,120]
[339665103,1727820726075,-3040.17,0.0003863,120]
[339665104,1727820726084,-942.17,0.0003863,120]
[339665105,1727820726093,-500.0,0.0003863,120]
[339665106,1727820726103,-705.58,0.0003863,120]
[339665107,1727820726112,-668.07,0.0003863,120]
[339665108,1727820726122,-500.0,0.0003863,120]
[339665109,1727820726131,-401.84178947,0.0003863,120]
[339665110,1727820726141,-4496.99,0.0003863,120]
[339665111,1727820726150,-1286.0,0.0003863,120]
[339665112,1727820726160,-500.0,0.0003863,120]
[339665113,1727820726169,-3133.99,0.0003863,120]
[339665114,1727820726179,-500.0,0.0003863,120]
[339665115,1727820726188,-500.0,0.0003863,120]
[339665116,1727820726197,-1188.4,0.0003863,120]
[339665117,1727820726207,-1397.93,0.0003863,120]
[339665118,1727820726216,-629.91,0.0003863,120]
[339665119,1727820726225,-435.31186102,0.0003863,120]
[339665120,1727820726235,-1053.39,0.0003863,120]
[339665121,1727820726244,-500.0,0.0003863,120]
[339665122,1727820726253,-500.0,0.0003863,120]
[339665123,1727820726265,-3743.21,0.0003863,120]
[339665124,1727820726274,-500.0,0.0003863,120]
[339665125,1727820726283,-597.89,0.0003863,120]
[339665126,1727820726293,-969.44,0.0003863,120]
[339665127,1727820726302,-500.0,0.0003863,120]
[339665128,1727820726311,-1991.74,0.0003863,120]
[339665129,1727820726321,-1515.24,0.0003863,120]
[339665130,1727820726330,-500.0,0.0003863,120]
[339665131,1727820726340,-500.0,0.0003863,120]
[339665132,1727820726349,-500.0,0.0003863,120]
[339665133,1727820726358,-500.0,0.0003863,120]
[339665134,1727820726368,-500.0,0.0003863,120]
[339665135,1727820726377,-700.15,0.0003863,120]
[339665136,1727820726386,-500.0,0.0003863,120]
[339665137,1727820726395,-1506.61,0.0003863,120]
[339665138,1727820726405,-515.1,0.0003863,120]
[339665139,1727820726414,-1051.28,0.0003863,120]
[339665140,1727820726423,-567.36,0.0003863,120]
[339665141,1727820726434,-500.0,0.0003863,120]
[339665142,1727820726443,-956.15,0.0003863,120]
[339665143,1727820726453,-500.0,0.0003863,120]
[339665144,1727820726462,-3675.33,0.0003863,120]
[339665145,1727820726471,-500.0,0.0003863,120]
[339665146,1727820726481,-500.0,0.0003863,120]
[339665147,1727820726491,-500.0,0.0003863,120]
[339665148,1727820726500,-1785.58,0.0003863,120]
[339665149,1727820726515,-500.0,0.0003863,120]
[339665150,1727820726524,-500.0,0.0003863,120]
[339665151,1727820726534,-535.14,0.0003863,120]
[339665152,1727820726543,-500.0,0.0003863,120]
[339665153,1727820726552,-500.0,0.0003863,120]
[339665154,1727820726562,-500.0,0.0003863,120]
[339665155,1727820726571,-2586.99,0.0003863,120]
[339665156,1727820726580,-300.15177783,0.0003863,120]
[339665157,1727820726590,-500.0,0.0003863,120]
[339665158,1727820726599,-500.0,0.0003863,120]
[339665159,1727820726609,-1336.37,0.0003863,120]
[339665160,1727820726618,-500.0,0.0003863,120]
[339665161,1727820726628,-500.0,0.0003863,120]
[339665162,1727820726641,-500.0,0.0003863,120]
[339665163,1727820726651,-2647.49,0.0003863,120]
[339665164,1727820726661,-778.95,0.0003863,120]
[339665165,1727820726671,-500.0,0.0003863,120]
[339665166,1727820726682,-1825.45,0.0003863,120]
[339665167,1727820726692,-890.0,0.0003863,120]
[339665168,1727820726701,-954.63,0.0003863,120]
[339665169,1727820726712,-500.0,0.0003863,120]
[339665170,1727820726721,-500.0,0.0003863,120]
[339665171,1727820726731,-3668.63,0.0003863,120]
[339665172,1727820726740,-500.0,0.0003863,120]
[339665173,1727820726750,-769.11,0.0003863,120]
[339665174,1727820726760,-5154.82,0.0003863,120]
[339665175,1727820726769,-500.0,0.0003863,120]
[339665176,1727820726778,-500.0,0.0003863,120]
[339665177,1727820726788,-500.0,0.0003863,120]
[339665178,1727820726797,-947.87,0.0003863,120]
[339665179,1727820726806,-500.0,0.0003863,120]
[339665180,1727820726816,-1126.54,0.0003863,120]
[339665181,1727820726825,-500.0,0.0003863,120]
[339665182,1727820726834,-2928.52,0.0003863,120]
[339665183,1727820726844,-500.0,0.0003863,120]
[339665184,1727820726853,-500.0,0.0003863,120]
[339665185,1727820726863,-895.68,0.0003863,120]
[339665186,1727820726872,-500.0,0.0003863,120]
[339665187,1727820726881,-500.0,0.0003863,120]
[339665188,1727820726890,-3582.35,0.0003863,120]
[339665189,1727820726900,-500.0,0.0003863,120]
[339665190,1727820726909,-626.88,0.0003863,120]
[339665191,1727820726918,-3186.82,0.0003863,120]
[339665192,1727820726927,-500.0,0.0003863,120]
[339665193,1727820726936,-881.7,0.0003863,120]
[339665194,1727820726945,-500.0,0.0003863,120]
[339665195,1727820726954,-500.0,0.0003863,120]
[339665196,1727820726964,-500.0,0.0003863,120]
[339665197,1727820726973,-1958.05,0.0003863,120]
[339665198,1727820726982,-500.0,0.0003863,120]
[339665199,1727820726991,-557.58,0.0003863,120]
[339665200,1727820727001,-767.78,0.0003863,120]
[339665201,1727820727012,-5802.43,0.0003863,120]
[339665202,1727820727021,-500.0,0.0003863,120]
[339665203,1727820727030,-500.0,0.0003863,120]
[339665204,1727820727039,-825.32,0.0003863,120]
[339665205,1727820727049,-859.85,0.0003863,120]
[339665206,1727820727058,-4024.18,0.0003863,120]
[339665207,1727820727067,-715.33,0.0003863,120]
[339665208,1727820727076,-500.0,0.0003863,120]
[339665209,1727820727086,-600.91,0.0003863,120]
[339665210,1727820727095,-1644.4,0.0003863,120]
[339665211,1727820727104,-500.0,0.0003863,120]
[339665212,1727820727114,-500.0,0.0003863,120]
[339665213,1727820727122,-1605.08,0.0003863,120]
[339665214,1727820727132,-500.0,0.0003863,120]
[339665215,1727820727141,-3238.34,0.0003863,120]
[339665216,1727820727151,-500.0,0.0003863,120]
[339665217,1727820727159,-500.0,0.0003863,120]
[339665218,1727820727169,-500.0,0.0003863,120]
[339665219,1727820727178,-1054.99,0.0003863,120]
[339665220,1727820727187,-500.0,0.0003863,120]
[339665221,1727820727196,-3916.65,0.0003863,120]
[339665222,1727820727205,-500.0,0.0003863,120]
[339665223,1727820727214,-705.94,0.0003863,120]
[339665224,1727820727223,-500.0,0.0003863,120]
[339665225,1727820727232,-974.68,0.0003863,120]
[339665226,1727820727241,-500.0,0.0003863,120]
[339665227,1727820727250,-504.00530015,0.0003863,120]
[339665228,1727820727261,-6174.97,0.0003863,120]
[339665229,1727820727270,-588.82315369,0.0003863,120]
[339665230,1727820727279,-500.0,0.0003863,120]
[339665231,1727820727288,-658.12,0.0003863,120]
[339665232,1727820727298,-500.0,0.0003863,120]
[339665233,1727820727307,-500.0,0.0003863,120]
[339665234,1727820727317,-775.59,0.0003863,120]
[339665235,1727820727327,-500.0,0.0003863,120]
[339665236,1727820727336,-500.0,0.0003863,120]
[339665237,1727820727346,-1372.39,0.0003863,120]
[339665238,1727820727356,-500.0,0.0003863,120]
[339665239,1727820727365,-500.0,0.0003863,120]
[339665240,1727820727375,-1520.88,0.0003863,120]
[339665241,1727820727696,-1297.71,0.0003863,120]
[339665242,1727820727713,-500.0,0.0003863,120]
[339665243,1727820727722,-500.0,0.0003863,120]
[339665244,1727820727732,-500.0,0.0003863,120]
[339665245,1727820727741,-3150.26,0.0003863,120]
[339665246,1727820727751,-500.0,0.0003863,120]
[339665247,1727820727761,-500.0,0.0003863,120]
[339665248,1727820727770,-5095.45,0.0003863,120]
[339665249,1727820727780,-3394.19,0.0003863,120]
[339665250,1727820727789,-500.0,0.0003863,120]
[339665251,1727820727799,-1142.69,0.0003863,120]
[339665252,1727820727808,-1053.24,0.0003863,120]
[339665253,1727820727818,-2187.58,0.0003863,120]
[339665254,1727820727827,-4714.56,0.0003863,120]
[339665255,1727820727836,-500.0,0.0003863,120]
[339665256,1727820727846,-1671.69,0.0003863,120]
[339665257,1727820727855,-500.0,0.0003863,120]
[339665258,1727820727865,-3883.23,0.0003863,120]
[339665259,1727820727874,-17549.28,0.0003863,120]
[339665260,1727820727883,-1292.14,0.0003863,120]
[339665261,1727820727892,-500.0,0.0003863,120]
[339665262,1727820727902,-788.0,0.0003863,120]
[339665263,1727820727911,-500.0,0.0003863,120]
[339665264,1727820727921,-638.54,0.0003863,120]
[339665265,1727820727930,-500.0,0.0003863,120]
[339665266,1727820727940,-396.01,0.0003863,7]
[339665267,1727820727949,-500.0,0.0003863,120]
[339665268,1727820727958,-1235.86,0.0003863,120]
[339665269,1727820727967,-500.0,0.0003863,120]
[339665270,1727820727977,-2860.26,0.0003863,120]
[339665271,1727820727987,-1610.29,0.0003863,120]
[339665272,1727820727997,-500.0,0.0003863,120]
[339665273,1727820728008,-712.51,0.0003863,120]
[339665274,1727820728017,-500.0,0.0003863,120]
[339665275,1727820728026,-2386.75,0.0003863,120]
[339665276,1727820728035,-500.0,0.0003863,120]
[339665277,1727820728046,-806.81,0.0003863,120]
[339665278,1727820728055,-500.0,0.0003863,120]
[339665279,1727820728065,-500.0,0.0003863,120]
[339665280,1727820728076,-4893.53,0.0003863,120]
[339665281,1727820728086,-767.39,0.0003863,120]
[339665282,1727820728096,-500.0,0.0003863,120]
[339665283,1727820728106,-500.0,0.0003863,120]
[339665284,1727820728115,-500.0,0.0003863,120]
[339665285,1727820728125,-825.12,0.0003863,120]
[339665286,1727820728134,-500.0,0.0003863,120]
[339665287,1727820728146,-1123.02,0.0003863,120]
[339665288,1727820728155,-322.93734251,0.0003863,120]
[339665289,1727820728165,-1398.64,0.0003863,120]
[339665290,1727820728174,-500.0,0.0003863,120]
[339665291,1727820728183,-500.85837125,0.0003863,120]
[339665292,1727820728193,-2555.24,0.0003863,120]
[339665293,1727820728204,-3466.7,0.0003863,120]
[339665294,1727820728214,-2011.18,0.0003863,120]
[339665295,1727820728225,-500.0,0.0003863,120]
[339665296,1727820728234,-2209.57,0.0003863,120]
[339665297,1727820728243,-500.0,0.0003863,120]
[339665298,1727820728253,-1207.96,0.0003863,120]
[339665299,1727820728262,-500.0,0.0003863,120]
[339665300,1727820728271,-500.0,0.0003863,120]
[339665301,1727820728280,-4914.93,0.0003863,120]
[339665302,1727820728290,-2617.4,0.0003863,120]
[339665303,1727820728299,-2149.87,0.0003863,120]
[339665304,1727820728308,-1890.45,0.0003863,120]
[339665305,1727820728318,-500.0,0.0003863,120]
[339665306,1727820728327,-500.0,0.0003863,120]
[339665307,1727820728337,-1649.36,0.0003863,120]
[339665308,1727820728346,-500.0,0.0003863,120]
[339665309,1727820728356,-500.0,0.0003863,120]
[339665310,1727820728365,-500.0,0.0003863,120]
[339665311,1727820728374,-500.0,0.0003863,120]
[339665312,1727820728383,-2406.64,0.0003863,120]
[339665313,1727820728393,-1461.25,0.0003863,120]
[339665314,1727820728402,-1568.55,0.0003863,120]
[339665315,1727820728412,-1084.08,0.0003863,120]
[339665316,1727820728421,-500.0,0.0003863,120]
[339665317,1727820728430,-1930.59,0.0003863,120]
[339665318,1727820728440,-4446.49,0.0003863,120]
[339665319,1727820728449,-500.0,0.0003863,120]
[339665320,1727820728459,-682.28,0.0003863,120]
[339665321,1727820728468,-1023.78,0.0003863,120]
[339665322,1727820728477,-867.75,0.0003863,120]
[339665323,1727820728486,-2028.77,0.0003863,120]
[339665324,1727820728495,-500.0,0.0003863,120]
[339665325,1727820728506,-1990.55,0.0003863,120]
[339665326,1727820728516,-500.0,0.0003863,120]
[339665327,1727820728534,-500.0,0.0003863,120]
[339665328,1727820728543,-500.0,0.0003863,120]
[339665329,1727820728553,-4386.65,0.0003863,120]
[339665330,1727820728563,-1031.31,0.0003863,120]
[339665331,1727820728572,-500.0,0.0003863,120]
[339665332,1727820728581,-500.0,0.0003863,120]
[339665333,1727820728590,-500.0,0.0003863,120]
[339665334,1727820728600,-500.0,0.0003863,120]
[339665335,1727820728609,-4452.22,0.0003863,120]
[339665336,1727820728619,-500.0,0.0003863,2]
[339665337,1727820728628,-525.33,0.0003863,120]
[339665338,1727820728640,-959.26,0.0003863,120]
[339665339,1727820728650,-500.0,0.0003863,120]
[339665340,1727820728659,-500.0,0.0003863,120]
[339665341,1727820728669,-1661.65,0.0003863,120]
[339665342,1727820728678,-677.36,0.0003863,120]
[339665343,1727820728687,-500.0,0.0003863,120]
[339665344,1727820728697,-2137.91,0.0003863,120]
[339665345,1727820728706,-1601.79,0.0003863,120]
[339665346,1727820728717,-854.5,0.0003863,120]
[339665347,1727820728726,-500.0,0.0003863,120]
[339665348,1727820728737,-790.95,0.0003863,120]
[339665349,1727820728747,-500.0,0.0003863,120]
[339665350,1727820728756,-500.0,0.0003863,120]
[339665351,1727820728765,-500.0,0.0003863,120]
[339665352,1727820728774,-500.0,0.0003863,120]
[339665353,1727820728784,-500.0,0.0003863,120]
[339665354,1727820728793,-1114.17,0.0003863,120]
[339665355,1727820728803,-4846.83,0.0003863,120]
[339665356,1727820728811,-500.0,0.0003863,120]
[339665357,1727820728820,-12554.0,0.0003863,21]
[339665358,1727820728829,-1529.29,0.0003863,120]
[339665359,1727820728838,-500.0,0.0003863,120]
[339665360,1727820728847,-709.79,0.0003863,120]
[339665361,1727820728856,-500.0,0.0003863,120]
[339665362,1727820728865,-1767.66,0.0003863,120]
[339665363,1727820728874,-1511.8,0.0003863,120]
[339665364,1727820728883,-877.21,0.0003863,120]
[339665365,1727820728892,-500.0,0.0003863,120]
[339665366,1727820728901,-945.09,0.0003863,120]
[339665367,1727820728910,-500.0,0.0003863,120]
[339665368,1727820728920,-1047.64,0.0003863,120]
[339665369,1727820728929,-1347.25,0.0003863,120]
[339665370,1727820728938,-1869.39,0.0003863,120]
[339665371,1727820728948,-1709.97,0.0003863,120]
[339665372,1727820728957,-2022.15,0.0003863,120]
[339665373,1727820728966,-500.0,0.0003863,120]
[339665374,1727820728975,-1933.11,0.0003863,120]
[339665375,1727820728984,-1560.47,0.0003863,120]
[339665376,1727820728994,-595.71,0.0003863,120]
[339665377,1727820729003,-3847.15,0.0003863,120]
[339665378,1727820729018,-500.0,0.0003863,120]
[339665379,1727820729032,-1415.25,0.0003863,120]
[339665380,1727820729041,-500.0,0.0003863,2]
[339665381,1727820729050,-804.68,0.0003863,120]
[339665382,1727820729060,-670.45,0.0003863,120]
[339665383,1727820729069,-500.0,0.0003863,7]
[339665384,1727820729078,-556.97,0.0003863,120]
[339665385,1727820729088,-1420.1,0.0003863,120]
[339665386,1727820729097,-2451.79,0.0003863,120]
[339665387,1727820729106,-837.57,0.0003863,120]
[339665388,1727820729115,-500.0,0.0003863,120]
[339665389,1727820729124,-5533.52,0.0003863,120]
[339665390,1727820729133,-1738.11,0.0003863,120]
[339665391,1727820729142,-980.72,0.0003863,120]
[339665392,1727820729151,-500.0,0.0003863,120]
[339665393,1727820729160,-500.0,0.0003863,120]
[339665394,1727820729170,-6787.03,0.0003863,120]
[339665395,1727820729180,-1000.0274125,0.000387,120]
[339665396,1727820729191,-5184.07695803,0.00038721,90]
[339665397,1727820729200,-5664.07601084,0.00038761,60]
[339665398,1727820729212,-164.11302771,0.00038775,10]
[339665399,1727820729221,-514.54932685,0.00038793,7]
[339665400,1727820729231,-593.08731422,0.00038793,7]
[339665401,1727820729240,-947.99133299,0.00038793,7]
[339665402,1727820729249,-1000.0,0.000388,4]
[339665403,1727820729259,-3109.69220739,0.000388,30]
[339665404,1727820729268,-84753.17664265,0.000388,60]
[339665405,1727820729277,-206.0,0.0003881,30]
[339665406,1727820729287,-600.0,0.00038868,10]
[339665407,1727820729296,-500.0,0.00038868,10]
[339665408,1727820729306,-1000.0,0.00038868,10]
[339665409,1727820729315,-8078.42990409,0.0003888,90]
[339665410,1727820729324,-398.17232906,0.0003888,120]
[339665411,1727820729333,-1344.42,0.00038904,120]
[339665412,1727820729342,-500.0,0.00038904,120]
[339665413,1727820729351,-500.0,0.00038904,120]
[339665414,1727820729361,-500.0,0.00038904,120]
[339665415,1727820729370,-500.0,0.00038904,120]
[339665416,1727820729379,-500.0,0.00038904,120]
[339665417,1727820729388,-500.0,0.00038904,120]
[339665418,1727820729398,-500.0,0.00038904,120]